Cogmind - Beta 14 @@@ ROGUE MODE // 2025.01.04 @ 11:08:58 Player: SuperSwiss Result: Self-destructed Performance ------------- Evolutions (0) 0 Regions Visited (4) 800 Robots Destroyed (4) 20 Value Destroyed (64) 64 Prototype IDs (0) 0 Alien Tech Used (0) 0 Bonus (0) 0 TOTAL SCORE: 884 Bonus ------- None Cogmind --------- Core Integrity 157/250 Matter 485/500 Energy 100/100 System Corruption 0% Temperature Cool (0) Movement Core (250) Ox4 Location -9/Mines Parts ------- > --- POWER (1) -------- (None) > --- PROPULSION (2) --- (None) > --- UTILITY (2) ------ Medium Storage Unit High-capacity Matter Pod > --- WEAPON (2) ------- (None) > --- INVENTORY (10) --- Ion Engine Ion Engine Aluminum Leg Small Storage Unit Compact Matter Pod (150) Shotgun Rocket Launcher Rocket Launcher Rocket Launcher Peak State ------------ > --- POWER ------------ Light Nuclear Core > --- PROPULSION ------- Aluminum Leg Aluminum Leg > --- UTILITY ---------- Medium Storage Unit High-capacity Matter Pod > --- WEAPON ----------- Light Assault Rifle Rocket Launcher > --- INVENTORY -------- Ion Engine Ion Engine Aluminum Leg Small Storage Unit Compact Matter Pod Grenade Launcher Rocket Launcher Rocket Launcher Rocket Launcher [Rating: 11] Favorites ----------- Power Light Nuclear Core Engine Ion Engine Power Core Light Nuclear Core Propulsion Aluminum Leg Leg Aluminum Leg Utility Medium Storage Unit Storage Medium Storage Unit Weapon Light Assault Rifle Ballistic Gun Light Assault Rifle Launcher Grenade Launcher Build | -11 -10 -10 -10 -9 ------- Run | Yrd Mat Min Exi Min Slots Evolved . | . . . . . Power . | . . . . . Propulsion . | . . . . . Utility . | . . . . . Weapon . | . . . . . Parts Attached 19 | 6 2 6 1 4 Power 2 | 1 . 1 . . Engine 1 | 1 . . . . Core 1 | . . 1 . . Reactor . | . . . . . Propulsion 3 | 2 . 1 . . Treads . | . . . . . Leg 3 | 2 . 1 . . Wheel . | . . . . . Hover . | . . . . . Flight . | . . . . . Utility 6 | 1 1 2 1 1 Device . | . . . . . Storage 6 | 1 1 2 1 1 Processor . | . . . . . Hackware . | . . . . . Protection . | . . . . . Artifact . | . . . . . Weapon 8 | 2 1 2 . 3 Energy Gun . | . . . . . Energy Cannon . | . . . . . Ballistic Gun 4 | 2 . 2 . . Ballistic Cannon . | . . . . . Launcher 4 | . 1 . . 3 Special Weapon . | . . . . . Impact Weapon . | . . . . . Slashing Weapon . | . . . . . Piercing Weapon . | . . . . . Special Melee Weapon . | . . . . . Unidentified Prototypes . | . . . . . Parts Lost 6 | . . . . 6 Power 1 | . . . . 1 Propulsion 2 | . . . . 2 Utility . | . . . . . Weapon 3 | . . . . 3 Highest Loss Streak 5 | . . . . 5 To Critical Strikes . | . . . . . Average Slot Usage (%) 78 | . 72 60 80 85 Engine 2 | . 14 7 . . Core 11 | . . 7 14 13 Leg 26 | . 21 22 28 27 Storage 22 | . 14 14 23 28 Ballistic Gun 12 | . 11 8 14 13 Launcher 2 | . 10 1 . 1 Peak Build Rating 11 | 6 7 8 9 11 Average Rating 7 | 3 5 6 8 8 On Entrance 5 | . 6 5 8 9 Naked Turns . | . . . . . Heaviest Build 22 | 13 20 18 19 22 Greatest Support 20 | 20 20 20 20 20 Greatest Overweight (x) 4 | 3 1 1 . 4 Average Overweight (x) . | . . . . . Largest Inventory Capacity 10 | 8 10 10 10 10 Average Capacity 9 | 6 9 9 10 10 Most Carried 10 | 6 8 9 10 10 Average Carried 8 | 2 5 8 9 9 Final Capacity 10 | 8 10 10 10 10 Final Carried 9 | 2 8 9 9 9 Class Distribution -------------------- 100% | Mutant Dominant Class ---------------- Mutant | -10/Materials Mutant | -10/Mines Mutant | -10/Exiles Mutant | -9/Mines Resources | -11 -10 -10 -10 -9 ----------- Run | Yrd Mat Min Exi Min Matter Collected 486 | 260 20 73 . 133 Remotely . | . . . . . Salvage Created 81 | . 40 . . 41 Parts 4 | . 2 . . 2 Haulers Intercepted . | . . . . . Recyclers Shooed . | . . . . . Parts Field Recycled . | . . . . . Retrieved Matter . | . . . . . Parts Self-Destructed . | . . . . . Prevented . | . . . . . Kills | -11 -10 -10 -10 -9 ------- Run | Yrd Mat Min Exi Min Combat Hostiles Destroyed 15 | . 1 . . 14 Guns 2 | . . . . 2 AOE 13 | . 1 . . 12 Classes Destroyed 3 | . 1 . . 2 Swarmer 3 | . . . . 3 Grunt 1 | . 1 . . . Assembled 11 | . . . . 11 Best Kill Streak 11 | . 1 . . 11 Combat Bots Only 11 | . 1 . . 11 Max Kills in Single Turn 3 | . 1 . . 3 Gunslinging . | . . . . . Exploded 3 | . 1 . . 3 Melee . | . . . . . Uniques/NPCs Destroyed . | . . . . . Combat | -11 -10 -10 -10 -9 -------- Run | Yrd Mat Min Exi Min Hostile Shots Fired 55 | . 7 . . 48 Missed 23 | . 4 . . 19 Damage Taken 615 | . 40 . . 575 Core 93 | . . . . 93 Absorbed by Shields . | . . . . . Core Remaining (%) 100 | 100 . . . . Volleys Fired 15 | . 1 . . 14 Largest 2 | . 2 . . 2 Hottest 53 | . 50 . . 53 Shots Fired 23 | . 2 . . 21 Gun 13 | . 1 . . 12 Cannon . | . . . . . Launcher 10 | . 1 . . 9 Special . | . . . . . Kinetic 13 | . 1 . . 12 Thermal . | . . . . . Explosive 10 | . 1 . . 9 Electromagnetic . | . . . . . Robot Hit Streak 4 | . 2 . . 4 Robot Miss Streak 2 | . . . . 2 Penetration Max . | . . . . . Secondary Targets . | . . . . . Shots Hit Robots 13 | . 2 . . 11 Core Hits 29 | 1 1 . . 27 Critical Kills . | . . . . . Critical Parts Destroyed . | . . . . . Critical Strikes . | . . . . . Melee Attacks . | . . . . . Impact . | . . . . . Slashing . | . . . . . Piercing . | . . . . . Sneak Attacks . | . . . . . Combat Hostiles . | . . . . . Follow-up Attacks . | . . . . . Damage Inflicted 905 | 3 55 . . 847 Guns 52 | . 12 . . 40 Cannons . | . . . . . Explosions 850 | . 43 . . 807 Melee . | . . . . . Ramming 3 | 3 . . . . Kinetic 52 | . 12 . . 40 Thermal . | . . . . . Explosive 850 | . 43 . . 807 Electromagnetic . | . . . . . Impact . | . . . . . Slashing . | . . . . . Piercing . | . . . . . Highest Corruption . | . . . . . Average Corruption . | . . . . . Corruption Purged . | . . . . . Corruption Blocked . | . . . . . Overload Shots . | . . . . . Overflow Damage 8 | . . . . 8 Projectiles . | . . . . . Explosions 8 | . . . . 8 Melee . | . . . . . Knockbacks . | . . . . . Impact . | . . . . . Kinetic . | . . . . . Secondary . | . . . . . Self-Inflicted Damage 20 | . . . . 20 Shots 3 | . . . . 3 Rammed . | . . . . . Targets Rammed 1 | 1 . . . . Kicked 1 | 1 . . . . Crushed . | . . . . . Highest Temperature 32 | . . . . 32 Average Temperature 13 | . . . . 13 Received Heat Transfer 24 | . 24 . . . Siege Activations . | . . . . . Robots Corrupted . | . . . . . Combat Hostiles . | . . . . . Parts Fried . | . . . . . Impact Corruptions . | . . . . . Robots Melted . | . . . . . Combat Hostiles . | . . . . . Parts Melted . | . . . . . Heat Transferred . | . . . . . Parts Sabotaged . | . . . . . Parts Stolen . | . . . . . Parts Stripped . | . . . . . Power Chain Reactions . | . . . . . Alert | -11 -10 -10 -10 -9 ------- Run | Yrd Mat Min Exi Min Peak Influence 115 | . 20 7 . 115 Initial 7 | . . 7 . . Average 38 | . 14 7 . 72 Maximum Alert Level . | . . . . . Low Security (%) 100 | 100 100 100 . 100 Level 1 . | . . . . . Level 2 . | . . . . . Level 3 . | . . . . . Level 4 . | . . . . . Level 5 . | . . . . . High Security . | . . . . . Max Security . | . . . . . Squads Dispatched 1 | . 1 . . . Investigation . | . . . . . Extermination . | . . . . . Reinforcement 1 | . 1 . . . Assault . | . . . . . Garrison . | . . . . . Intercept . | . . . . . Searches Triggered . | . . . . . Construction Impeded . | . . . . . Haulers Reinforced . | . . . . . Active Scanning Responses . | . . . . . Cargo Convoy Interrupts . | . . . . . Stealth | -11 -10 -10 -10 -9 --------- Run | Yrd Mat Min Exi Min Distress Signals . | . . . . . Communications Jammed . | . . . . . Distress Signals . | . . . . . Times Spotted 29 | . 3 . . 26 Peak Tracking Total 16 | . 2 . . 16 Tactical Retreats 2 | . . . . 2 Traps | -11 -10 -10 -10 -9 ------- Run | Yrd Mat Min Exi Min Traps Triggered 1 | . 1 . . . Indirectly . | . . . . . Trap Hack Attempts . | . . . . . Triggered . | . . . . . Disarmed . | . . . . . Reprogrammed . | . . . . . Reused . | . . . . . Traps Extracted . | . . . . . Installed . | . . . . . Triggered . | . . . . . Machines | -11 -10 -10 -10 -9 ---------- Run | Yrd Mat Min Exi Min Machines Disabled . | . . . . . Max in Single Turn . | . . . . . Machines Repaired . | . . . . . Machines Dismantled . | . . . . . Machines Sabotaged . | . . . . . Overloaded Fab Kills . | . . . . . Hacking | -11 -10 -10 -10 -9 --------- Run | Yrd Mat Min Exi Min Machines Accessed 1 | . . . 1 . Terminals . | . . . . . Fabricators . | . . . . . Repair Stations . | . . . . . Recycling Units . | . . . . . Scanalyzers . | . . . . . Garrison Access . | . . . . . Total Hacks 1 | . . . 1 . Successful 1 | . . . 1 . Failed . | . . . . . Catastrophic . | . . . . . Database Lockouts . | . . . . . Manual . | . . . . . Terminals . | . . . . . Fabricators . | . . . . . Repair Stations . | . . . . . Recycling Units . | . . . . . Scanalyzers . | . . . . . Garrison Access . | . . . . . Terminal Hacks 1 | . . . 1 . Record 1 | . . . 1 . Fabricator Hacks . | . . . . . Repair Station Hacks . | . . . . . Recycling Unit Hacks . | . . . . . Scanalyzer . | . . . . . Garrison Access Hacks . | . . . . . Unauthorized Hacks . | . . . . . Terminals . | . . . . . Fabricators . | . . . . . Repair Stations . | . . . . . Recycling Units . | . . . . . Scanalyzers . | . . . . . Garrison Access . | . . . . . Data Cores Recovered . | . . . . . Used . | . . . . . Hacking Detections . | . . . . . Full Trace Events . | . . . . . Feedback Events . | . . . . . Feedback Blocked . | . . . . . Robot Schematics Acquired . | . . . . . Robots Built . | . . . . . Authchips . | . . . . . Time . | . . . . . Total Robot Build Rating . | . . . . . Part Schematics Acquired . | . . . . . Parts Built . | . . . . . Authchips . | . . . . . Time . | . . . . . Total Part Build Rating . | . . . . . Parts Repaired . | . . . . . Time . | . . . . . Parts Recycled . | . . . . . Recycled Matter . | . . . . . Retrieved Matter . | . . . . . Retrieved Components . | . . . . . Parts Scanalyzed . | . . . . . Part Schematics Acquired . | . . . . . Parts Damaged . | . . . . . Bothacking | -11 -10 -10 -10 -9 ------------ Run | Yrd Mat Min Exi Min Used RIF Installer . | . . . . . Robots Hacked . | . . . . . Non-combat . | . . . . . Combat . | . . . . . Robot Hacks Applied . | . . . . . Relay Couplers Released . | . . . . . Fabnet Peak Effective % . | . . . . . Robots Rewired . | . . . . . Allies Hacked . | . . . . . Hacks Repelled . | . . . . . Allies | -11 -10 -10 -10 -9 -------- Run | Yrd Mat Min Exi Min Total Allies . | . . . . . Largest Group . | . . . . . Highest-Rated Group . | . . . . . Highest-Rated Ally . | . . . . . Total Orders . | . . . . . Ally Attacks . | . . . . . Total Damage . | . . . . . Kills . | . . . . . Allies Corrupted . | . . . . . Allies Melted . | . . . . . Intel | -11 -10 -10 -10 -9 ------- Run | Yrd Mat Min Exi Min Robot Analysis Total . | . . . . . Derelict Logs Recovered 3 | . . 1 . 2 Drone Launches . | . . . . . Drone Recoveries . | . . . . . Exploration | -11 -10 -10 -10 -9 ------------- Run | Yrd Mat Min Exi Min Turns Passed 1264 | 50 188 120 606 300 Spaces Moved 958 | 41 121 90 504 202 Core 23 | 22 . . . 1 Treads . | . . . . . Legs 935 | 19 121 90 504 201 Wheels . | . . . . . Hover . | . . . . . Flight . | . . . . . Fastest Speed 50 | 50 120 120 120 120 Average Speed 122 | 89 144 122 120 123 Slowest Speed 250 | 200 190 190 120 250 Overloaded Moves . | . . . . . Propulsion Burnouts . | . . . . . Robots Hopped . | . . . . . Cave-ins Triggered . | . . . . . Exploration Rate (%) 40 | 3 27 33 90 47 Regions Visited 4 Branch Regions 3 Pre-discovered Areas 2 | . . 1 . 1 Known Exits Taken . | . . . . . Unknown Exits Taken 4 | 1 1 1 1 . Scrap Searched 2 | . . . . 2 Spaces Dug . | . . . . . Terrain Destroyed 86 | . . . . 86 Melee . | . . . . . Projectile . | . . . . . AOE 86 | . . . . 86 Terrain Rammed . | . . . . . Walls Destroyed . | . . . . . Machines Disabled . | . . . . . Actions | -11 -10 -10 -10 -9 --------- Run | Yrd Mat Min Exi Min Total 1022 | 53 131 99 505 234 Wait 11 | . 2 . . 9 Move 955 | 41 120 89 503 202 Hop . | . . . . . Pick Up 18 | 6 6 2 1 3 Fast Attach 3 | 2 . 1 . . Attach 10 | 4 . 2 1 3 Detach 2 | . . 1 . 1 Swap 6 | . 2 3 . 1 Drop 2 | . . 1 . 1 Fire 15 | . 1 . . 14 Melee . | . . . . . Ram . | . . . . . Kick . | . . . . . Crush . | . . . . . Escape Stasis . | . . . . . Rewire . | . . . . . Trap . | . . . . . Miscellaneous . | . . . . . Route ------- -11/Scrapyard -10/Materials (discovered 2 exits: *Mat / [*Min]) -10/Mines (discovered 2 exits: Mat / *Exi) -10/Exiles -9/Mines History --------- Turn | Location | Event 6 | -11/Scrapyard | Discovered new exit (range 15) 51 | -11/Scrapyard | Entered Materials 81 | -10/Materials | Discovered new exit (range 13) 93 | -10/Materials | Discovered new exit (range 5) 109 | -10/Materials | Met 8R-AWN 239 | -10/Materials | Entered Mines 240 | -10/Mines | Learned location of Storage (-8) 241 | -10/Mines | Followed 8R-AWN into the Mines 280 | -10/Mines | Identified exit to Materials 312 | -10/Mines | Build established: Mutant 353 | -10/Mines | Discovered new exit (range 5) 359 | -10/Mines | Entered Exiles 388 | -10/Exiles | Welcomed by 8R-AWN 423 | -10/Exiles | Met EX-HEX 471 | -10/Exiles | Met EX-DEC 553 | -10/Exiles | Discovered new exit (range 11) 626 | -10/Exiles | Visited The Gauntlet 786 | -10/Exiles | Met EX-BIN 965 | -10/Exiles | Entered Mines 1026 | -9/Mines | Learned Materials garrison access intel 1128 | -9/Mines | Assembled infested the area 1129 | -9/Mines | Learned location of Zion (-7) 1133 | -9/Mines | Assisted by a Guerilla fighting off Assembled 1182 | -9/Mines | Destroyed 11 combat bots 1246 | -9/Mines | Found DCF Scrap (11 items) 1265 | -9/Mines | Self-destructed Last Messages --------------- 01246_ Found Autogun. 01246_ Found Med. Laser. 01246_ Found 150 Matter. A note is attached: "With love, from the DCF." 01251_ Lgt. Nuclear Core destroyed. 01252_ HV Slug penetrates Wall. 01253_ Lgt. Assault Rifle destroyed. 01253_ T-07 Excavator is excavating. 01254_ HV Slug penetrates Wall. 01255_ S-10 Pest destroyed. 01256_ HV Slug penetrates S-10 Pest. 01256_ HV Slug penetrates Wall. 01257_ Grenade Launcher destroyed. 01257_ A6-69W(h) destroyed. 01257_ T-07 Excavator is excavating. 01257_ Aluminum Leg destroyed. 01260_ The unstable cave ceiling collapses. 01262_ Aluminum Leg destroyed. 01262_ T-07 Excavator is excavating. 01263_ U-05 Engineer lays Concrete. Map ----- +----------------------------------------------------+ | ????# ##?# #??????????????????????? | | ????# ##???#???????????????????????? | | ????# #???????????????????????????? | | ????# #???????????????????????????? | | ????##=! ##???????????????????????????? | | ?????##%* ###????????????????????????????? | | ??????## ##??????????????????????????????? | | ???????# % ##???????????????????????????????? | | ???????# * ## #????????????????????????????????? | | ???????# | ### #????????????????????????????????? | | ???????## ##?# #????????????????????????????????? | | ????????# #??# #????????????????????????????????? | | ???????## #??# #????????????????????????????????? | | ???????# #??# ###??????????????????????????????? | | ??###### ###??# #?????????#????????????????????? | | ??# #????### #???????? #????????????????????? | | ??# #####??????# #???????? ##???????????????????? | | ### #??????????# #????????=;#???????????????????? | | # ####???????# #???#####!%????????????????????? | | # ##?????## #??## # !%##??#????????????????? | | #?????# *#?## d #s ## ##???????????????? | | # #?????# ! # s ##??????????????? | | ## ####??# ![[%= s = u #??????????????? | | ?## # ##?# = ##?????????????? | | ?## # ##?# ## #?????????????? | | ## # # @ ????????? | | # # # d #?????????? | | # % % # # ####?????????? | | ## % ##????????????? | | ?## ### ## #### # #?????????????? | | ??### " # # t # #?????????????? | | ????#### # ## #? ##?????????????? | | ????????## " ??######? ##??????????????? | | ?????????%" ## ?????????? ##???????????????? | | ???????? " ##? ##???????????##????????????????? | | ???????# #???###??????????????????????????????? | | ????????#####????????????????????????????????????? | | ?????????????????????????????????????????????????? | | | | | | | | | | | | | | | | | | | | | | | | | +----------------------------------------------------+ Best States ------------- Heat Dissipation 25 Energy Generation 14 Energy Capacity 250 Matter Stores 500 Matter Capacity 500 Sight Range 16 Terrain Scan Density 10 Evasion (%) 55 Item Schematics ----------------- None Robot Schematics ------------------ None Fabricated ------------ Nothing Alien Tech Used ----------------- None Achievements -------------- None Challenges ------------ None Game ------ Seed OpticalImprovedKit Manual? 0 Play Time 00:17:46 Cumulative 13.8 hours Start 2025.01.04 @ 10:16:09 End 2025.01.04 @ 11:08:58 Sessions 3 Manual Loads 0 Difficulty Rogue Special Mode None Game No. 22 Rogue 19 Adventurer 0 Explorer 3 Win Type - Total 0 Types 0/0/0/0/0/0/0/0/0 Lore% 3 Gallery% 18 Achievement% 19 Wizard Run 0 Options --------- Layout 0 ASCII 0 Keyboard 0 Movement Numpad Keybinds 0 Fullscreen 0 Font 16/SmallcapsGlow Map View 88x55 Zoom Use 0% Tactical HUD 1 Map Filters NONE Filters NONE Steam 1 RUN: 7975d9f6-a6a9-45e6-834a-ee19c8b4b970